bitfinex/quotes_BTCUSD_20250530
["timestamp","ask_amount","ask_price","bid_price","bid_amount"]
[1748598342370,0.22687498,105130.0,105120.0,0.00881861]
[1748598342612,0.22026353,105130.0,105120.0,0.67692636]
[1748598342860,0.04714526,105130.0,105120.0,0.76798024]
[1748598343104,0.001,105130.0,105120.0,0.76797963]
[1748598343340,0.001,105130.0,105120.0,0.78252046]
[1748598343580,0.01812248,105130.0,105120.0,0.78252046]
[1748598344023,0.04714536,105130.0,105120.0,0.78252046]
[1748598344229,0.04714536,105130.0,105120.0,0.78252225]
[1748598344444,0.05665703,105130.0,105120.0,0.78252225]
[1748598344662,0.05665703,105130.0,105120.0,0.7736948]
[1748598344663,0.011,105130.0,105120.0,0.7736948]
[1748598344879,0.01,105140.0,105130.0,0.01454085]
[1748598345100,0.04614355,105140.0,105130.0,0.45679957]
[1748598345325,0.04614355,105140.0,105130.0,1.18202186]
[1748598345326,0.07467646,105140.0,105130.0,1.18202186]
[1748598345560,0.25538862,105140.0,105130.0,1.18202186]
[1748598345803,0.24587795,105140.0,105130.0,1.1731948]
[1748598346055,0.2283671,105140.0,105130.0,0.34882895]
[1748598346312,0.22554462,105140.0,105130.0,0.34882895]
[1748598346564,0.21024462,105140.0,105130.0,0.34]
[1748598346817,0.20073368,105140.0,105130.0,0.34883125]
[1748598347092,0.20073368,105140.0,105130.0,0.34883128]
[1748598347336,0.20073368,105140.0,105130.0,0.34883165]
[1748598347612,0.20073368,105140.0,105130.0,0.35817934]
[1748598348103,0.20073368,105140.0,105130.0,0.34934769]
[1748598348343,0.20073368,105140.0,105130.0,0.35817933]
[1748598348577,0.21785616,105140.0,105130.0,0.34934769]
[1748598348823,0.20073368,105140.0,105130.0,0.35817884]
[1748598349085,0.23143368,105140.0,105130.0,0.34883155]
[1748598349331,0.23143368,105140.0,105130.0,0.34883211]
[1748598349810,0.21583368,105140.0,105130.0,0.34]
[1748598350051,0.21583368,105140.0,105130.0,0.34883274]
[1748598350292,0.21583368,105140.0,105130.0,0.3488325]
[1748598350502,0.21583368,105140.0,105130.0,0.34883237]
[1748598350724,0.21583368,105140.0,105130.0,0.34883246]
[1748598350936,0.26583368,105140.0,105130.0,0.34]
[1748598351369,0.26583368,105140.0,105130.0,0.34883343]
[1748598352255,0.26583368,105140.0,105130.0,0.34884662]
[1748598352713,0.28093368,105140.0,105130.0,0.34884658]
[1748598353643,0.28093368,105140.0,105130.0,0.34887257]
[1748598353883,0.37198763,105140.0,105130.0,0.00887257]
[1748598354552,0.1997525,105130.0,105120.0,0.0001]
[1748598354775,0.32200645,105130.0,105120.0,0.00898545]
[1748598354990,0.32200645,105130.0,105120.0,0.00898351]
[1748598355647,0.32200645,105130.0,105120.0,0.0001]
[1748598355871,0.2153525,105130.0,105120.0,0.0001]
[1748598356077,0.22486426,105130.0,105120.0,0.0001]
[1748598356295,0.20926426,105130.0,105120.0,0.0001]
[1748598356564,0.20926426,105130.0,105120.0,0.00898447]
[1748598356801,0.20926426,105130.0,105120.0,0.0001]
[1748598357713,0.20926426,105130.0,105120.0,0.00951485]
[1748598357940,0.20926426,105130.0,105120.0,0.0001]
[1748598358156,0.20926426,105130.0,105120.0,0.01137523]
[1748598358375,0.02902324,105130.0,105120.0,0.02591608]
[1748598358594,0.21926389,105130.0,105120.0,0.02591608]
[1748598358809,0.22877583,105130.0,105120.0,0.02591608]
[1748598359022,0.21926435,105130.0,105120.0,0.02591608]
[1748598360189,0.04614572,105130.0,105120.0,0.01464085]
[1748598360432,0.05565404,105140.0,105130.0,0.01454085]
[1748598360672,0.05565521,105140.0,105130.0,0.01454085]
[1748598360899,0.24587777,105140.0,105130.0,0.01454085]
[1748598361379,0.2363671,105140.0,105130.0,0.01454085]
[1748598362137,0.03663315,105140.0,105130.0,0.01454085]
[1748598362364,0.06516561,105140.0,105130.0,0.01454085]
[1748598362579,0.05565449,105140.0,105130.0,0.01454085]
[1748598362787,0.06716534,105140.0,105130.0,0.01454085]
[1748598363025,0.03663288,105140.0,105130.0,0.01454085]
[1748598363252,0.01,105140.0,105130.0,0.4455948]
[1748598363467,0.01951031,105140.0,105130.0,0.4455948]
[1748598363712,0.00950959,105150.0,105140.0,0.35454085]
[1748598363997,0.01,105150.0,105140.0,0.7701948]
[1748598364550,0.01,105160.0,105150.0,0.01454085]
[1748598364824,0.01,105160.0,105150.0,0.5563948]
[1748598365045,0.30735697,105180.0,105160.0,0.34]
[1748598365046,0.111,105180.0,105160.0,0.34]
[1748598365295,0.01,105170.0,105160.0,0.7703148]
[1748598365521,0.12812248,105180.0,105170.0,0.01454085]
[1748598365743,0.14713649,105180.0,105170.0,0.02596572]
[1748598365956,0.13762935,105180.0,105170.0,0.02596572]
[1748598366383,0.1471364,105180.0,105170.0,0.02596572]
[1748598366605,0.15664373,105180.0,105170.0,0.0259539]
[1748598366822,0.1521364,105180.0,105170.0,0.02594534]
[1748598367037,0.15664363,105180.0,105170.0,0.02594534]
[1748598367252,0.34679357,105180.0,105170.0,0.76594534]
[1748598367474,0.35830172,105180.0,105170.0,0.76594534]
[1748598367703,0.158644,105180.0,105170.0,0.76594534]
[1748598367936,0.34879476,105180.0,105170.0,0.76594534]
[1748598368272,0.31216505,105180.0,105170.0,0.34]
[1748598368492,0.22681799,105160.0,105150.0,0.12269437]
[1748598368718,0.19969551,105160.0,105150.0,0.01189437]
[1748598368971,0.21579551,105160.0,105150.0,0.00048988]
[1748598369209,0.23139551,105160.0,105150.0,0.00048988]
[1748598369881,0.21579551,105160.0,105150.0,0.00048988]
[1748598370344,0.21579551,105160.0,105150.0,0.00148988]
[1748598370573,0.21579551,105160.0,105150.0,0.00048988]
[1748598371253,0.23109551,105160.0,105150.0,0.00048988]
[1748598371458,0.64646946,105160.0,105150.0,0.00048988]
[1748598371901,0.75726946,105160.0,105150.0,0.00248988]
[1748598372331,0.75726946,105160.0,105150.0,0.00048988]
[1748598372758,0.75926946,105160.0,105150.0,0.00048988]
[1748598372995,0.77026946,105160.0,105150.0,0.00048988]
[1748598373227,0.76826946,105160.0,105150.0,0.00048988]
[1748598373451,0.32314946,105160.0,105150.0,0.00048988]
[1748598373671,0.75790946,105160.0,105150.0,0.00048988]
[1748598373881,0.75590946,105160.0,105150.0,0.00048988]
[1748598374092,0.75890946,105160.0,105150.0,0.00048988]
[1748598374549,0.20926408,105130.0,105120.0,0.0001]
[1748598374963,0.20926408,105130.0,105120.0,0.07638856]
[1748598375072,0.02663406,105130.0,105120.0,0.41638856]
[1748598375277,0.23589832,105130.0,105120.0,0.41638856]
[1748598375489,0.22638674,105130.0,105120.0,0.3401]
[1748598376351,0.22638674,105130.0,105120.0,0.34970436]
[1748598377386,0.03614554,105130.0,105120.0,0.34970436]
[1748598377584,0.04565748,105130.0,105120.0,0.36424521]
[1748598377834,0.02712248,105130.0,105120.0,0.47280521]
[1748598378008,0.0195113,105130.0,105120.0,0.57995916]
[1748598378379,0.00950949,105150.0,105130.0,0.01454085]
[1748598378588,0.23585624,105150.0,105140.0,0.35454085]
[1748598378793,0.22824398,105150.0,105140.0,0.35454085]
[1748598379001,0.20922472,105150.0,105140.0,0.35454085]
[1748598379890,0.20271468,105150.0,105140.0,0.35454085]
[1748598381065,0.20271468,105150.0,105120.0,0.02110885]
[1748598381066,0.23638656,105130.0,105120.0,0.02110885]
[1748598381294,0.23638656,105130.0,105120.0,0.76415831]
[1748598382034,0.21687498,105130.0,105120.0,0.34970436]
[1748598382300,0.21687498,105130.0,105120.0,0.00970436]
[1748598382530,0.1997525,105130.0,105120.0,0.00970436]
[1748598382746,0.22638656,105130.0,105120.0,0.00970436]
[1748598382967,0.20926408,105130.0,105120.0,0.00970436]
[1748598383177,0.20926408,105130.0,105120.0,0.34970436]
[1748598383442,0.1997525,105130.0,105120.0,0.34]
[1748598384343,0.24541053,105130.0,105120.0,0.34]
[1748598384562,0.04614526,105130.0,105120.0,0.66288]
[1748598384777,0.04565702,105130.0,105120.0,0.66288]
[1748598385014,0.24541034,105130.0,105120.0,0.66288]
[1748598385197,0.23589886,105130.0,105120.0,0.67251973]
[1748598385409,0.0095113,105130.0,105120.0,0.67251973]
[1748598385613,0.05516814,105130.0,105120.0,0.67251973]
[1748598385826,0.06467999,105130.0,105120.0,0.68392422]
[1748598386071,0.01,105130.0,105120.0,0.68392422]
[1748598386312,0.05565675,105130.0,105120.0,0.77497817]
[1748598386533,0.05565675,105130.0,105120.0,0.76357368]
[1748598386746,0.01,105130.0,105120.0,0.79457368]
[1748598386968,0.01,105130.0,105120.0,0.80597817]
[1748598387254,0.01,105130.0,105120.0,0.79457368]
[1748598387481,0.19067626,105160.0,105120.0,1.06054714]
[1748598387482,0.00048988,105160.0,105120.0,1.06054714]
[1748598387702,0.12852088,105180.0,105160.0,0.34]
[1748598387922,0.02663017,105170.0,105160.0,0.76272949]
[1748598388133,0.03613804,105170.0,105160.0,0.76607151]
[1748598388372,0.01712248,105170.0,105160.0,0.77462518]
[1748598388585,0.10950678,105180.0,105160.0,1.30573151]
[1748598388804,0.10950678,105180.0,105170.0,0.09960469]
[1748598388805,0.34530108,105180.0,105170.0,0.09960469]
[1748598389022,0.14564409,105180.0,105170.0,0.09960469]
[1748598389233,0.14564409,105180.0,105170.0,0.45818503]
[1748598389234,0.1551516,105180.0,105170.0,0.45818503]
[1748598389453,0.13613667,105180.0,105170.0,0.45818503]
[1748598389686,0.12662917,105180.0,105170.0,0.45818503]
[1748598390118,0.149643,105180.0,105170.0,0.44963429]
[1748598390335,0.16865756,105180.0,105170.0,0.45818185]
[1748598390563,0.16865747,105180.0,105170.0,0.45818185]
[1748598390839,0.33979412,105180.0,105170.0,0.45818185]
[1748598391109,0.15915142,105180.0,105170.0,0.45818185]
[1748598391361,0.13062917,105180.0,105170.0,0.45818185]
[1748598391562,0.11750669,105180.0,105170.0,0.45818185]
[1748598391812,0.104,105180.0,105170.0,0.45818185]
[1748598392057,0.104,105180.0,105170.0,0.48598953]
[1748598392268,0.103,105180.0,105170.0,0.90118953]
[1748598392475,0.105,105180.0,105170.0,0.89264197]
[1748598392924,0.103,105180.0,105170.0,0.89264197]
[1748598393130,0.1,105180.0,105170.0,0.89264197]
[1748598393351,0.101,105180.0,105170.0,0.89264197]
[1748598393560,0.061,105180.0,105170.0,0.89264197]
[1748598393808,0.07050678,105180.0,105170.0,0.89264197]
[1748598394015,0.061,105180.0,105170.0,0.90117935]
[1748598394234,0.07050687,105180.0,105170.0,0.90117935]
[1748598394454,0.07150669,105180.0,105170.0,0.90117935]
[1748598394670,0.062,105180.0,105170.0,0.90117935]
[1748598394929,0.07150669,105180.0,105170.0,0.90117935]
[1748598395160,0.28067091,105180.0,105170.0,0.52957935]
[1748598395381,0.30206459,105180.0,105170.0,0.00853738]
[1748598395609,0.71515854,105180.0,105170.0,0.00853738]
[1748598395831,0.23057652,105170.0,105160.0,0.00048988]
[1748598396058,0.39791903,105170.0,105160.0,0.00048988]
[1748598396719,0.64347047,105170.0,105160.0,0.00048988]
[1748598397623,0.71975903,105170.0,105160.0,0.00048988]
[1748598397847,0.71975903,105170.0,105120.0,0.03187079]
[1748598397848,0.20926408,105130.0,105120.0,0.03187079]
[1748598398060,0.20926408,105130.0,105120.0,0.36333341]
[1748598398273,0.20926408,105130.0,105120.0,0.02333341]
[1748598398747,0.20926408,105130.0,105120.0,0.35192573]
[1748598398929,0.20926408,105130.0,105120.0,0.01192573]
[1748598399389,0.20926408,105130.0,105120.0,0.01207272]
[1748598399609,0.20926417,105130.0,105120.0,0.01207272]
[1748598401684,0.20926417,105130.0,105120.0,0.01307272]
[1748598402300,0.21687452,105130.0,105120.0,0.02761357]
[1748598402557,0.02663387,105130.0,105120.0,0.1272049]
[1748598402760,0.04565711,105130.0,105120.0,0.1272049]
[1748598403171,0.03614373,105140.0,105120.0,0.1438049]
[1748598403377,0.05516516,105140.0,105130.0,0.02307823]
[1748598403602,0.20924435,105140.0,105130.0,0.02307823]
[1748598403848,0.22638692,105130.0,105120.0,0.1272049]
[1748598404053,0.22638692,105130.0,105120.0,0.5570449]
[1748598404468,0.22638692,105130.0,105120.0,0.8960449]
[1748598405283,0.22638692,105130.0,105120.0,0.3606101]
[1748598405702,0.22638692,105130.0,105120.0,0.3616101]
[1748598406138,0.20926444,105130.0,105120.0,0.35307272]
[1748598408130,0.19975268,105130.0,105120.0,0.35197037]
[1748598408569,0.19024065,105130.0,105120.0,0.36651122]
[1748598408827,0.04565675,105130.0,105120.0,0.36651122]
[1748598409043,0.24540916,105130.0,105120.0,0.36651122]
[1748598409278,0.02663369,105130.0,105120.0,0.45756517]
[1748598409485,0.23587857,105140.0,105120.0,0.45756517]
[1748598409720,0.01902107,105140.0,105130.0,0.34]
[1748598409960,0.03614247,105150.0,105130.0,0.69296085]
[1748598410259,0.26651654,105160.0,105130.0,0.69296085]
[1748598410260,0.21871388,105160.0,105140.0,0.01454085]
[1748598410464,0.04565114,105150.0,105140.0,0.02307823]
[1748598410905,0.01712248,105150.0,105140.0,0.02307823]
[1748598411165,0.04564915,105160.0,105150.0,0.35454085]
[1748598411393,0.06,105180.0,105150.0,0.79205218]
[1748598411613,0.06,105180.0,105170.0,0.35454085]
[1748598411830,0.08852088,105180.0,105170.0,0.7680348]
[1748598412047,0.08852088,105180.0,105170.0,1.17657218]
[1748598412471,0.0980283,105180.0,105170.0,1.17657218]
[1748598412689,0.11515078,105180.0,105170.0,1.17657218]
[1748598412920,0.27916225,105180.0,105170.0,1.17657218]
[1748598413343,0.26965502,105180.0,105170.0,1.17657218]
[1748598413556,0.26965502,105180.0,105170.0,1.28317218]
[1748598413780,0.25064009,105180.0,105170.0,0.85413218]
[1748598414047,0.21679909,105170.0,105160.0,0.36307823]
[1748598414277,0.19967661,105170.0,105160.0,0.36307823]
[1748598414486,0.19967661,105170.0,105160.0,0.76307823]
[1748598414696,0.16918493,105170.0,105160.0,0.75454085]
[1748598415129,0.16918493,105170.0,105160.0,0.74]
[1748598415537,0.16918493,105170.0,105160.0,0.742]
[1748598415740,0.17869307,105170.0,105160.0,0.742]
[1748598416168,0.16918493,105170.0,105160.0,0.742]
[1748598416805,0.08711959,105180.0,105160.0,0.75654085]
[1748598417019,0.03613813,105170.0,105160.0,0.76507823]
[1748598417185,0.03613813,105170.0,105160.0,0.76707823]
[1748598417186,0.04564609,105170.0,105160.0,0.76707823]
[1748598417397,0.04564609,105170.0,105160.0,0.02707823]
[1748598417547,0.05515423,105170.0,105160.0,0.36707823]
[1748598417788,0.05515423,105170.0,105160.0,0.36507823]
[1748598417789,0.04564609,105170.0,105160.0,0.36507823]
[1748598417990,0.06999711,105180.0,105160.0,0.85613218]
[1748598418203,0.07950389,105180.0,105170.0,0.33614085]
[1748598418397,0.08901131,105180.0,105170.0,0.33614085]
[1748598418605,0.28866903,105180.0,105170.0,0.33614085]
[1748598418807,0.26965502,105180.0,105170.0,0.33614085]
[1748598419025,0.26965502,105180.0,105170.0,0.35530623]
[1748598419227,0.26965502,105180.0,105170.0,0.34040538]
[1748598419430,0.216799,105170.0,105160.0,1.19523823]
[1748598419627,0.216799,105170.0,105160.0,0.75253738]
[1748598419880,0.216799,105170.0,105160.0,1.07365738]
[1748598420313,0.216799,105170.0,105160.0,0.75053738]
[1748598420607,0.216799,105170.0,105160.0,1.06945738]
[1748598420812,0.216799,105170.0,105160.0,1.06092]
[1748598420954,0.216799,105170.0,105160.0,0.66092]
[1748598421157,0.01901727,105160.0,105150.0,0.69544961]
[1748598421364,0.02852613,105160.0,105150.0,1.18650407]
[1748598421564,0.0095085,105160.0,105150.0,1.17796248]
[1748598421778,0.0551572,105160.0,105150.0,1.17796248]
[1748598422389,0.0551572,105160.0,105150.0,1.18096248]
[1748598422616,0.04564825,105160.0,105150.0,1.18096248]
[1748598422814,0.05515711,105160.0,105150.0,1.18096248]
[1748598423241,0.03803463,105160.0,105150.0,1.18096248]
[1748598423455,0.03613966,105160.0,105150.0,1.18096248]
[1748598423663,0.03613966,105160.0,105150.0,1.18396248]
[1748598423875,0.04564852,105160.0,105150.0,1.18396248]
[1748598424094,0.04564852,105160.0,105150.0,0.86300248]
[1748598424304,0.03613966,105160.0,105150.0,1.18332248]
[1748598424512,0.02663098,105160.0,105150.0,1.19892248]
[1748598424718,0.01712248,105160.0,105150.0,1.19892248]
[1748598424930,0.06999657,105180.0,105160.0,0.01454085]
[1748598425144,0.27916154,105180.0,105170.0,0.67458085]
[1748598425433,0.28866896,105180.0,105170.0,0.67458085]
[1748598425647,0.2886683,105180.0,105170.0,0.68312959]
[1748598425857,0.28866821,105180.0,105170.0,0.68312959]
[1748598426733,0.28866903,105180.0,105170.0,0.68312959]
[1748598426938,0.27916152,105180.0,105170.0,0.68312959]
[1748598427364,0.06048988,105180.0,105170.0,0.88122354]
[1748598427573,0.06048988,105180.0,105170.0,0.93355959]
[1748598428660,0.01288598,105180.0,105170.0,1.34994559]
[1748598428878,0.01288598,105180.0,105170.0,1.33854698]
[1748598429141,0.00528208,105180.0,105170.0,1.45854698]
[1748598429587,0.71862969,105200.0,105190.0,0.01454085]
[1748598429588,0.72813593,105200.0,105190.0,0.01454085]
[1748598429818,0.50965179,105200.0,105190.0,0.68252186]
[1748598430059,0.52866202,105200.0,105190.0,0.68252186]
[1748598430289,0.5001469,105200.0,105190.0,1.17622311]
[1748598430517,0.51726938,105200.0,105190.0,1.19182311]
[1748598430737,0.51726938,105200.0,105190.0,0.85698311]
[1748598430738,0.72639421,105200.0,105190.0,0.85698311]
[1748598430958,0.70927173,105200.0,105190.0,1.07082831]
[1748598431179,0.71127173,105200.0,105190.0,0.34]
[1748598431415,0.74287173,105200.0,105190.0,0.34]
[1748598431657,0.83292568,105200.0,105190.0,0.34]
[1748598432097,0.72657173,105200.0,105190.0,0.34]
[1748598432329,0.71027173,105200.0,105190.0,0.34]
[1748598432762,0.70927173,105200.0,105190.0,0.34]
[1748598433060,0.70927173,105200.0,105190.0,0.342]
[1748598433289,0.70927173,105200.0,105190.0,0.344]
[1748598433504,0.70927173,105200.0,105190.0,0.34]
[1748598433711,0.71027173,105200.0,105190.0,0.34]
[1748598433938,0.71127173,105200.0,105190.0,0.34]
[1748598434818,0.74367173,105200.0,105190.0,0.34]
[1748598435263,0.00950733,105180.0,105170.0,0.14445192]
[1748598435487,0.21585754,105180.0,105170.0,0.02742361]
[1748598435704,0.22255021,105180.0,105170.0,0.02742361]
[1748598435914,0.20156487,105180.0,105170.0,0.36742361]
[1748598436374,0.20156487,105180.0,105170.0,0.02742361]
[1748598436375,0.29261882,105180.0,105170.0,0.02742361]
[1748598436601,0.29261882,105180.0,105170.0,0.01888618]
[1748598436842,0.20918466,105170.0,105160.0,0.34]
[1748598438175,0.19969551,105160.0,105150.0,0.10853743]
[1748598438409,0.23169551,105160.0,105150.0,0.10853743]
[1748598438646,0.20920455,105160.0,105150.0,0.44853743]
[1748598438870,0.28122224,105170.0,105150.0,0.44853743]
[1748598438871,0.19967652,105170.0,105160.0,0.34]
[1748598439092,0.20918448,105170.0,105160.0,0.34]
[1748598439307,0.20918448,105170.0,105160.0,0.3485649]
[1748598439308,0.19967652,105170.0,105160.0,0.3485649]
[1748598439541,0.19967652,105170.0,105160.0,0.34905478]
[1748598440422,0.19967652,105170.0,105160.0,0.00905478]
[1748598440637,0.19967652,105170.0,105160.0,0.00905896]
[1748598441540,0.21597652,105170.0,105160.0,0.34905896]
[1748598441724,0.23157652,105170.0,105160.0,0.34905896]
[1748598442504,0.23257652,105170.0,105160.0,0.34905896]
[1748598444460,0.23257652,105170.0,105160.0,0.34048988]
[1748598444618,0.20067652,105170.0,105160.0,0.34048988]
[1748598445249,0.01050823,105170.0,105160.0,0.34048988]
[1748598445493,0.21018448,105170.0,105160.0,0.34905712]
[1748598446146,0.24258448,105170.0,105160.0,0.00905712]
[1748598446365,0.33363843,105170.0,105160.0,0.00048988]
[1748598446613,0.65171843,105170.0,105160.0,0.00048988]
[1748598447493,0.65151843,105170.0,105160.0,0.00048988]
[1748598447701,0.65147843,105170.0,105160.0,0.00048988]
[1748598449073,0.33363843,105170.0,105160.0,0.00048988]
[1748598449300,0.19969551,105160.0,105150.0,0.09796988]
[1748598449726,0.20920455,105160.0,105150.0,0.09796988]
[1748598449939,0.19969551,105160.0,105150.0,0.09796988]
[1748598450161,0.19969551,105160.0,105150.0,0.10653069]
[1748598450375,0.19969551,105160.0,105150.0,0.10653076]
[1748598450591,0.20069551,105160.0,105150.0,0.10653076]
[1748598451446,0.01050859,105160.0,105150.0,0.10653076]
[1748598451681,0.03903589,105160.0,105150.0,0.12107161]
[1748598451895,0.22922227,105160.0,105150.0,0.12107161]
[1748598452136,0.02952649,105160.0,105150.0,0.12107161]
[1748598452357,0.21020491,105160.0,105150.0,0.12107161]
[1748598453268,0.21020491,105160.0,105150.0,0.10653076]
[1748598453480,0.21020491,105160.0,105150.0,0.44653076]
[1748598453690,0.21020491,105160.0,105150.0,0.43796988]
[1748598454543,0.24270491,105160.0,105150.0,0.43796988]
[1748598454962,0.33375886,105160.0,105150.0,0.09796988]
[1748598456695,0.65115886,105160.0,105150.0,0.09796988]
[1748598460029,0.65015886,105160.0,105150.0,0.09796988]
[1748598460496,0.65215886,105160.0,105150.0,0.09796988]
[1748598461886,0.65415886,105160.0,105150.0,0.09796988]
[1748598463229,0.33675886,105160.0,105150.0,0.09796988]
[1748598463760,0.65391886,105160.0,105150.0,0.09796988]
[1748598464828,0.71391886,105160.0,105150.0,0.09796988]
[1748598465705,0.70391886,105160.0,105150.0,0.09796988]
[1748598465927,0.70391886,105160.0,105120.0,0.002286]
[1748598465928,0.20926408,105130.0,105120.0,0.002286]
[1748598466151,0.73155803,105130.0,105120.0,0.002286]
[1748598466604,1.11155803,105130.0,105120.0,0.002286]
[1748598467038,1.14205803,105130.0,105120.0,0.002286]
[1748598467281,1.14205803,105130.0,105120.0,0.00443299]
[1748598467491,1.14205803,105130.0,105120.0,0.00243299]
[1748598467715,1.14505803,105130.0,105120.0,0.00243299]
[1748598468155,1.14805803,105130.0,105120.0,0.00243299]
[1748598469232,1.24056925,105130.0,105120.0,0.00243299]
[1748598469449,1.14805803,105130.0,105120.0,0.00243299]
[1748598470106,1.15805803,105130.0,105120.0,0.00243299]
[1748598470316,0.76777803,105130.0,105120.0,0.00243299]
[1748598471590,0.34681803,105130.0,105120.0,0.00243299]
[1748598471792,0.76753803,105130.0,105120.0,0.00243299]
[1748598472026,0.75233803,105130.0,105120.0,0.00243299]
[1748598472224,0.76883803,105130.0,105120.0,0.00243299]
[1748598473059,0.34811803,105130.0,105120.0,0.00243299]
[1748598473264,0.76851803,105130.0,105120.0,0.00243299]
[1748598473475,0.75197803,105130.0,105120.0,0.00243299]
[1748598474099,0.76847803,105130.0,105120.0,0.00243299]
[1748598474310,0.76831803,105130.0,105120.0,0.00243299]
[1748598475432,0.75181803,105130.0,105120.0,0.00243299]
[1748598475650,0.72623803,105130.0,105120.0,0.00243299]
[1748598477408,0.30631803,105130.0,105120.0,0.00243299]
[1748598477629,0.72623803,105130.0,105120.0,0.00243299]
[1748598478708,0.31631803,105130.0,105120.0,0.00243299]
[1748598478949,0.81773803,105130.0,105120.0,0.00243299]
[1748598479155,1.19773803,105130.0,105120.0,0.00243299]
[1748598479373,1.27402659,105130.0,105120.0,0.00243299]
[1748598479590,0.77181803,105130.0,105120.0,0.00243299]
[1748598479802,0.78623803,105130.0,105120.0,0.00243299]
[1748598480470,0.35631803,105130.0,105120.0,0.00243299]
[1748598480905,0.77623803,105130.0,105120.0,0.00243299]
[1748598481569,0.77623803,105130.0,105120.0,0.01843299]
[1748598481570,0.35631803,105130.0,105120.0,0.01843299]
[1748598481789,0.26526408,105130.0,105120.0,0.37443299]
[1748598482438,0.26526408,105130.0,105120.0,0.03443299]
[1748598482684,0.21526408,105130.0,105120.0,0.03443299]
[1748598483134,0.21226408,105130.0,105120.0,0.03443299]
[1748598483342,0.21026408,105130.0,105120.0,0.03443299]
[1748598483560,0.21126408,105130.0,105120.0,0.37443299]
[1748598484440,0.21026408,105130.0,105120.0,0.37443299]
[1748598485270,0.21977611,105130.0,105120.0,0.37443299]
[1748598485486,0.20926453,105130.0,105120.0,0.37443299]
[1748598485696,0.20926444,105130.0,105120.0,0.37443299]
[1748598485914,0.21877602,105130.0,105120.0,0.38298051]
[1748598486797,0.03804657,105130.0,105120.0,0.05752136]
[1748598486999,0.02853454,105130.0,105120.0,0.05752136]
[1748598487226,0.21877638,105130.0,105120.0,0.05752136]
[1748598487453,0.20926462,105130.0,105120.0,0.39753201]
[1748598489199,0.20926462,105130.0,105120.0,0.38299116]
[1748598489418,0.20926462,105130.0,105120.0,0.37443299]
[1748598490343,0.30031857,105130.0,105120.0,0.00243299]
[1748598490568,0.81266713,105130.0,105120.0,0.00243299]
[1748598490985,0.79656713,105130.0,105120.0,0.00243299]
[1748598491433,0.83760713,105130.0,105120.0,0.00243299]
[1748598491652,0.98011835,105130.0,105120.0,0.00243299]
[1748598491875,0.87760713,105130.0,105120.0,0.00243299]
[1748598492291,0.88860713,105130.0,105120.0,0.00243299]
[1748598492504,0.88760713,105130.0,105120.0,0.00243299]
[1748598492724,0.46733734,105130.0,105120.0,0.00099074]
[1748598492952,0.8172692,105130.0,105120.0,0.00045652]
[1748598493367,0.8004692,105130.0,105120.0,0.00072184]
[1748598493574,0.7956292,105130.0,105120.0,0.00072184]
[1748598493779,0.8016292,105130.0,105120.0,0.00172184]
[1748598494607,0.8014292,105130.0,105120.0,0.00172184]
[1748598495283,0.8012692,105130.0,105120.0,0.00172184]
[1748598495559,0.4689492,105130.0,105120.0,0.00172184]
[1748598495825,0.7859892,105130.0,105120.0,0.00172184]
[1748598496234,0.8176492,105130.0,105120.0,0.00172184]
[1748598496679,0.8276492,105130.0,105120.0,0.00172184]
[1748598496894,0.92470127,105130.0,105120.0,0.00172184]
[1748598497122,1.29098983,105130.0,105120.0,0.00172184]
[1748598497335,1.19847861,105130.0,105120.0,0.00172184]
[1748598497760,1.20979774,105130.0,105120.0,0.00172184]
[1748598498396,1.90979774,105130.0,105120.0,0.00172184]
[1748598500992,1.97579662,105130.0,105120.0,0.00172184]
[1748598501169,2.76830784,105130.0,105120.0,0.00172184]
[1748598501384,2.06830784,105130.0,105120.0,0.00172184]
[1748598501651,1.57077928,105130.0,105120.0,0.00172184]
[1748598501862,1.83450918,105130.0,105120.0,0.00172184]
[1748598502294,1.41326918,105130.0,105120.0,0.00172184]
[1748598502527,1.48367005,105130.0,105120.0,0.00172184]
[1748598502751,1.50643005,105130.0,105120.0,0.00172184]
[1748598502986,1.82367005,105130.0,105120.0,0.00172184]
[1748598503465,1.82387005,105130.0,105120.0,0.00172184]
[1748598503709,1.82383005,105130.0,105120.0,0.00172184]
[1748598504183,1.82283005,105130.0,105120.0,0.00172184]
[1748598504413,1.50543005,105130.0,105120.0,0.00172184]
[1748598504636,1.40095005,105130.0,105120.0,0.00172184]
[1748598504850,1.82335005,105130.0,105120.0,0.00172184]
[1748598505528,1.3864092,105130.0,105120.0,0.00172184]
[1748598505766,1.4967892,105130.0,105120.0,0.00172184]
[1748598506047,1.4968292,105130.0,105120.0,0.00172184]
[1748598506577,0.7968292,105130.0,105120.0,0.00172184]
[1748598507485,0.7965092,105130.0,105120.0,0.00172184]
[1748598507713,0.3245092,105130.0,105120.0,0.00172184]
[1748598507927,0.7464292,105130.0,105120.0,0.00172184]
[1748598508195,0.7963892,105130.0,105120.0,0.00172184]
[1748598508439,0.7963092,105130.0,105120.0,0.00172184]
[1748598511116,0.4789892,105130.0,105120.0,0.00172184]
[1748598511335,0.7963892,105130.0,105120.0,0.00172184]
[1748598512220,0.8249472,105130.0,105120.0,0.00172184]
[1748598512868,0.4030672,105130.0,105120.0,0.00172184]
[1748598513067,0.8248272,105130.0,105120.0,0.00172184]
[1748598513531,0.8247872,105130.0,105120.0,0.00172184]
[1748598514176,0.4475072,105130.0,105120.0,0.01822184]
[1748598514408,0.3430672,105130.0,105120.0,0.03392184]
[1748598514634,0.4189492,105130.0,105120.0,0.03392184]
[1748598514866,0.4189492,105130.0,105120.0,0.37392184]
[1748598514867,0.3145092,105130.0,105120.0,0.37392184]
[1748598515092,0.3145092,105130.0,105120.0,0.37392185]
[1748598515302,0.3119892,105130.0,105120.0,0.37392185]
[1748598515737,0.3029892,105130.0,105120.0,0.37392185]
[1748598516008,0.3009892,105130.0,105120.0,0.00072185]
[1748598516242,0.4654292,105130.0,105120.0,0.00072185]
[1748598516467,0.4694292,105130.0,105120.0,0.00072185]
[1748598517151,0.7861892,105130.0,105120.0,0.00072185]
[1748598518470,0.7860692,105130.0,105120.0,0.00072185]
[1748598518899,0.45750042,105130.0,105120.0,0.00072185]
[1748598519119,0.7863492,105130.0,105120.0,0.00072185]
[1748598519343,0.7362692,105130.0,105120.0,0.00072185]
[1748598519562,0.7262692,105130.0,105120.0,0.00072185]
[1748598519997,0.7264692,105130.0,105120.0,0.00072185]
[1748598520646,0.7263492,105130.0,105120.0,0.01602185]
[1748598522022,0.4094292,105130.0,105120.0,0.01602185]
[1748598522241,0.7260292,105130.0,105120.0,0.01602185]
[1748598522466,0.3049892,105130.0,105120.0,0.01602185]
[1748598522692,0.7259092,105130.0,105120.0,0.01602185]
[1748598522936,0.7259092,105130.0,105120.0,0.00072185]
[1748598523692,0.7259092,105130.0,105120.0,0.01642185]
[1748598524379,0.7259092,105130.0,105120.0,0.00072185]
[1748598525783,0.7249892,105130.0,105120.0,0.00072185]
[1748598526660,0.3049892,105130.0,105120.0,0.00072185]